{"text_format":"3","workbook":"xlsx","n_sheets":14,"sheets":["tips","ringkasan","jan","feb","mar","apr","mei","jun","jul","ags","sep","okt","nov","des"],"not_rendered":{"charts":1,"defined_names":27},"read":"whole","date_system":"1900"}

{"sheet":"tips","index":0,"n_rows":18,"n_cols":1,"rows_kept":18}
["TIPS TEMPLAT"]
["Apakah ada cara yang mudah untuk berpindah antara detail pengeluaran bulanan dan lembar ringkasan Tren Pengeluaran ?"]
["Untuk menavigasi dengan cepat ke pengeluaran bulan tertentu, klik tautan navigasi terkait di atas bagan, misalnya tautan navigasi Jan di B2. Lalu, untuk kembali ke lembar kerja Tren Pengeluaran, klik tautan navigasi Ringkasan di D1. "]
["Untuk kembali ke lembar kerja tips ini, dalam lembar kerja ringkasan, pilih N2. Dari semua lembar kerja bulan, pilih E1."]
["Bagaimana cara menambahkan tipe Pengeluaran baru ke Ringkasan Pengeluaran atau pengeluaran bulanan baru?"]
["Ringkasan Pengeluaran di bawah bagan dan detail pengeluaran untuk setiap bulan merupakan tabel Excel. Untuk menambahkan baris baru ke tabel Excel apa pun, lakukan salah satu hal berikut:"]
[{"$f":"ROW(A1)&\". Jika tabel tidak memiliki baris Total, mulailah mengetik di bawah tabel dan tabel akan meluas secara otomatis saat Anda menekan Enter atau tombol Tab.\"","v":"1. Jika tabel tidak memiliki baris Total, mulailah mengetik di bawah tabel dan tabel akan meluas secara otomatis saat Anda menekan Enter atau tombol Tab."}]
[{"$f":"ROW(A2)&\". Letakkan penunjuk sel dalam sel terakhir di atas baris Total, seperti total untuk pengeluaran terakhir, lalu tekan tombol Tab.\"","v":"2. Letakkan penunjuk sel dalam sel terakhir di atas baris Total, seperti total untuk pengeluaran terakhir, lalu tekan tombol Tab."}]
[{"$f":"ROW(A3)&\". Klik kanan dalam tabel, dan pada menu pop-up, arahkan ke Sisipkan, lalu klik Baris Tabel Atas atau Tabel Baris Bawah.\"","v":"3. Klik kanan dalam tabel, dan pada menu pop-up, arahkan ke Sisipkan, lalu klik Baris Tabel Atas atau Tabel Baris Bawah."}]
[{"$f":"ROW(A4)&\". Di sudut kanan bawah tabel, letakkan mouse pada gagang pengatur ukuran tabel dan seret ke bawah untuk menambah jumlah baris tabel yang tersedia.\"","v":"4. Di sudut kanan bawah tabel, letakkan mouse pada gagang pengatur ukuran tabel dan seret ke bawah untuk menambah jumlah baris tabel yang tersedia."}]
["Masukkan pengeluaran dalam lembar kerja ringkasan dalam tabel RingkasanPengeluaran di kolom Pengeluaran."]
["Tambahkan jumlah pengeluaran untuk setiap tipe pengeluaran dalam lembar kerja bulan yang berlaku untuk pengeluaran tersebut."]
["contohnya: \"Pengeluaran 1\" muncul dalam bulan Jan hingga Jun dan Des. "]
[{"$f":"ROW(A1)&\". Pengeluaran 1 dimasukkan di lembar kerja ringkasan di bawah Pengeluaran dalam tabel RingkasanPengeluaran (seperti judul untuk tipe pengeluaran)\"","v":"1. Pengeluaran 1 dimasukkan di lembar kerja ringkasan di bawah Pengeluaran dalam tabel RingkasanPengeluaran (seperti judul untuk tipe pengeluaran)"}]
[{"$f":"ROW(A2)&\". Untuk setiap bulannya pengeluaran tersebut terjadi, masukkan nilai untuk pengeluaran dalam lembar kerja bulan yang terkait.\"","v":"2. Untuk setiap bulannya pengeluaran tersebut terjadi, masukkan nilai untuk pengeluaran dalam lembar kerja bulan yang terkait."}]
[{"$f":"ROW(A3)&\". Tipe pengeluaran dari lembar kerja RingkasanPengeluaran akan membuat daftar kategori untuk kolom Kategori dalam lembar kerja setiap bulan.\"","v":"3. Tipe pengeluaran dari lembar kerja RingkasanPengeluaran akan membuat daftar kategori untuk kolom Kategori dalam lembar kerja setiap bulan."}]
[{"$f":"ROW(A4)&\". Gunakan daftar kategori di kolom Kategori untuk memilih tipe pengeluaran yang terkait bagi jumlah pengeluaran yang dimasukkan\"","v":"4. Gunakan daftar kategori di kolom Kategori untuk memilih tipe pengeluaran yang terkait bagi jumlah pengeluaran yang dimasukkan"}]
[{"$f":"ROW(A5)&\". Untuk menambahkan pengeluaran baru untuk setiap bulan, tambahkan baris baru ke tabel RingkasanPengeluaran di lembar kerja ringkasan, lalu masukkan detail pengeluaran yang terkait di lembar kerja bulan yang berkaitan.\"","v":"5. Untuk menambahkan pengeluaran baru untuk setiap bulan, tambahkan baris baru ke tabel RingkasanPengeluaran di lembar kerja ringkasan, lalu masukkan detail pengeluaran yang terkait di lembar kerja bulan yang berkaitan."}]

{"sheet":"ringkasan","index":1,"n_rows":10,"n_cols":15,"rows_kept":10}
["TREN PENGELUARAN"]
[null,"Jan","Feb","Mar","Apr","Mei","Jun","Jul","Ags","Sep","Okt","Nov","Des","Tips"]
[]
["Pengeluaran","Jan","Feb","Mar","Apr","Mei","Jun","Jul","Ags","Sep","Okt","Nov","Des","Total","Tren"]
["Pengeluaran 1",{"$f":"SUMIFS(PengeluaranJan[Jumlah],PengeluaranJan[Kategori],RingkasanPengeluaran[Pengeluaran])","v":{"v":33000,"d":"33,000.00"}},{"$f":"SUMIFS(PengeluaranFeb[Jumlah],PengeluaranFeb[Kategori],RingkasanPengeluaran[Pengeluaran])","v":{"v":375000,"d":"375,000.00"}},{"$f":"SUMIFS(PengeluaranMar[Jumlah],PengeluaranMar[Kategori],RingkasanPengeluaran[Pengeluaran])","v":{"v":33000,"d":"33,000.00"}},{"$f":"SUMIFS(PengeluaranApr[Jumlah],PengeluaranApr[Kategori],RingkasanPengeluaran[Pengeluaran])","v":{"v":45000,"d":"45,000.00"}},{"$f":"SUMIFS(PengeluaranMei[Jumlah],PengeluaranMei[Kategori],RingkasanPengeluaran[Pengeluaran])","v":{"v":375000,"d":"375,000.00"}},{"$f":"SUMIFS(PengeluaranJun[Jumlah],PengeluaranJun[Kategori],RingkasanPengeluaran[Pengeluaran])","v":{"v":201000,"d":"201,000.00"}},{"$f":"SUMIFS(PengeluaranJul[Jumlah],PengeluaranJul[Kategori],RingkasanPengeluaran[Pengeluaran])","v":{"v":0,"d":"0.00"}},{"$f":"SUMIFS(PengeluaranAgs[Jumlah],PengeluaranAgs[Kategori],RingkasanPengeluaran[Pengeluaran])","v":{"v":0,"d":"0.00"}},{"$f":"SUMIFS(PengeluaranSep[Jumlah],PengeluaranSep[Kategori],RingkasanPengeluaran[Pengeluaran])","v":{"v":0,"d":"0.00"}},{"$f":"SUMIFS(PengeluaranOkt[Jumlah],PengeluaranOkt[Kategori],RingkasanPengeluaran[Pengeluaran])","v":{"v":0,"d":"0.00"}},{"$f":"SUMIFS(PengeluaranNov[Jumlah],PengeluaranNov[Kategori],RingkasanPengeluaran[Pengeluaran])","v":{"v":0,"d":"0.00"}},{"$f":"SUMIFS(PengeluaranDes[Jumlah],PengeluaranDes[Kategori],RingkasanPengeluaran[Pengeluaran])","v":{"v":201000,"d":"201,000.00"}},{"$f":"SUM(RingkasanPengeluaran[[#This Row],[Jan]:[Des]])","v":{"v":1263000,"d":"1,263,000.00"}}]
["Pengeluaran 2",{"$f":"SUMIFS(PengeluaranJan[Jumlah],PengeluaranJan[Kategori],RingkasanPengeluaran[Pengeluaran])","v":{"v":238000,"d":"238,000.00"}},{"$f":"SUMIFS(PengeluaranFeb[Jumlah],PengeluaranFeb[Kategori],RingkasanPengeluaran[Pengeluaran])","v":{"v":238000,"d":"238,000.00"}},{"$f":"SUMIFS(PengeluaranMar[Jumlah],PengeluaranMar[Kategori],RingkasanPengeluaran[Pengeluaran])","v":{"v":238000,"d":"238,000.00"}},{"$f":"SUMIFS(PengeluaranApr[Jumlah],PengeluaranApr[Kategori],RingkasanPengeluaran[Pengeluaran])","v":{"v":123000,"d":"123,000.00"}},{"$f":"SUMIFS(PengeluaranMei[Jumlah],PengeluaranMei[Kategori],RingkasanPengeluaran[Pengeluaran])","v":{"v":111000,"d":"111,000.00"}},{"$f":"SUMIFS(PengeluaranJun[Jumlah],PengeluaranJun[Kategori],RingkasanPengeluaran[Pengeluaran])","v":{"v":98000,"d":"98,000.00"}},{"$f":"SUMIFS(PengeluaranJul[Jumlah],PengeluaranJul[Kategori],RingkasanPengeluaran[Pengeluaran])","v":{"v":0,"d":"0.00"}},{"$f":"SUMIFS(PengeluaranAgs[Jumlah],PengeluaranAgs[Kategori],RingkasanPengeluaran[Pengeluaran])","v":{"v":0,"d":"0.00"}},{"$f":"SUMIFS(PengeluaranSep[Jumlah],PengeluaranSep[Kategori],RingkasanPengeluaran[Pengeluaran])","v":{"v":0,"d":"0.00"}},{"$f":"SUMIFS(PengeluaranOkt[Jumlah],PengeluaranOkt[Kategori],RingkasanPengeluaran[Pengeluaran])","v":{"v":0,"d":"0.00"}},{"$f":"SUMIFS(PengeluaranNov[Jumlah],PengeluaranNov[Kategori],RingkasanPengeluaran[Pengeluaran])","v":{"v":0,"d":"0.00"}},{"$f":"SUMIFS(PengeluaranDes[Jumlah],PengeluaranDes[Kategori],RingkasanPengeluaran[Pengeluaran])","v":{"v":440000,"d":"440,000.00"}},{"$f":"SUM(RingkasanPengeluaran[[#This Row],[Jan]:[Des]])","v":{"v":1486000,"d":"1,486,000.00"}}]
["Pengeluaran 3",{"$f":"SUMIFS(PengeluaranJan[Jumlah],PengeluaranJan[Kategori],RingkasanPengeluaran[Pengeluaran])","v":{"v":110000,"d":"110,000.00"}},{"$f":"SUMIFS(PengeluaranFeb[Jumlah],PengeluaranFeb[Kategori],RingkasanPengeluaran[Pengeluaran])","v":{"v":110000,"d":"110,000.00"}},{"$f":"SUMIFS(PengeluaranMar[Jumlah],PengeluaranMar[Kategori],RingkasanPengeluaran[Pengeluaran])","v":{"v":110000,"d":"110,000.00"}},{"$f":"SUMIFS(PengeluaranApr[Jumlah],PengeluaranApr[Kategori],RingkasanPengeluaran[Pengeluaran])","v":{"v":125000,"d":"125,000.00"}},{"$f":"SUMIFS(PengeluaranMei[Jumlah],PengeluaranMei[Kategori],RingkasanPengeluaran[Pengeluaran])","v":{"v":333000,"d":"333,000.00"}},{"$f":"SUMIFS(PengeluaranJun[Jumlah],PengeluaranJun[Kategori],RingkasanPengeluaran[Pengeluaran])","v":{"v":122000,"d":"122,000.00"}},{"$f":"SUMIFS(PengeluaranJul[Jumlah],PengeluaranJul[Kategori],RingkasanPengeluaran[Pengeluaran])","v":{"v":0,"d":"0.00"}},{"$f":"SUMIFS(PengeluaranAgs[Jumlah],PengeluaranAgs[Kategori],RingkasanPengeluaran[Pengeluaran])","v":{"v":0,"d":"0.00"}},{"$f":"SUMIFS(PengeluaranSep[Jumlah],PengeluaranSep[Kategori],RingkasanPengeluaran[Pengeluaran])","v":{"v":0,"d":"0.00"}},{"$f":"SUMIFS(PengeluaranOkt[Jumlah],PengeluaranOkt[Kategori],RingkasanPengeluaran[Pengeluaran])","v":{"v":0,"d":"0.00"}},{"$f":"SUMIFS(PengeluaranNov[Jumlah],PengeluaranNov[Kategori],RingkasanPengeluaran[Pengeluaran])","v":{"v":0,"d":"0.00"}},{"$f":"SUMIFS(PengeluaranDes[Jumlah],PengeluaranDes[Kategori],RingkasanPengeluaran[Pengeluaran])","v":{"v":12200,"d":"12,200.00"}},{"$f":"SUM(RingkasanPengeluaran[[#This Row],[Jan]:[Des]])","v":{"v":922200,"d":"922,200.00"}}]
["Pengeluaran 4",{"$f":"SUMIFS(PengeluaranJan[Jumlah],PengeluaranJan[Kategori],RingkasanPengeluaran[Pengeluaran])","v":{"v":426000,"d":"426,000.00"}},{"$f":"SUMIFS(PengeluaranFeb[Jumlah],PengeluaranFeb[Kategori],RingkasanPengeluaran[Pengeluaran])","v":{"v":84000,"d":"84,000.00"}},{"$f":"SUMIFS(PengeluaranMar[Jumlah],PengeluaranMar[Kategori],RingkasanPengeluaran[Pengeluaran])","v":{"v":84000,"d":"84,000.00"}},{"$f":"SUMIFS(PengeluaranApr[Jumlah],PengeluaranApr[Kategori],RingkasanPengeluaran[Pengeluaran])","v":{"v":426000,"d":"426,000.00"}},{"$f":"SUMIFS(PengeluaranMei[Jumlah],PengeluaranMei[Kategori],RingkasanPengeluaran[Pengeluaran])","v":{"v":125000,"d":"125,000.00"}},{"$f":"SUMIFS(PengeluaranJun[Jumlah],PengeluaranJun[Kategori],RingkasanPengeluaran[Pengeluaran])","v":{"v":187000,"d":"187,000.00"}},{"$f":"SUMIFS(PengeluaranJul[Jumlah],PengeluaranJul[Kategori],RingkasanPengeluaran[Pengeluaran])","v":{"v":0,"d":"0.00"}},{"$f":"SUMIFS(PengeluaranAgs[Jumlah],PengeluaranAgs[Kategori],RingkasanPengeluaran[Pengeluaran])","v":{"v":0,"d":"0.00"}},{"$f":"SUMIFS(PengeluaranSep[Jumlah],PengeluaranSep[Kategori],RingkasanPengeluaran[Pengeluaran])","v":{"v":0,"d":"0.00"}},{"$f":"SUMIFS(PengeluaranOkt[Jumlah],PengeluaranOkt[Kategori],RingkasanPengeluaran[Pengeluaran])","v":{"v":0,"d":"0.00"}},{"$f":"SUMIFS(PengeluaranNov[Jumlah],PengeluaranNov[Kategori],RingkasanPengeluaran[Pengeluaran])","v":{"v":0,"d":"0.00"}},{"$f":"SUMIFS(PengeluaranDes[Jumlah],PengeluaranDes[Kategori],RingkasanPengeluaran[Pengeluaran])","v":{"v":18700,"d":"18,700.00"}},{"$f":"SUM(RingkasanPengeluaran[[#This Row],[Jan]:[Des]])","v":{"v":1350700,"d":"1,350,700.00"}}]
["Pengeluaran 5",{"$f":"SUMIFS(PengeluaranJan[Jumlah],PengeluaranJan[Kategori],RingkasanPengeluaran[Pengeluaran])","v":{"v":54000,"d":"54,000.00"}},{"$f":"SUMIFS(PengeluaranFeb[Jumlah],PengeluaranFeb[Kategori],RingkasanPengeluaran[Pengeluaran])","v":{"v":54000,"d":"54,000.00"}},{"$f":"SUMIFS(PengeluaranMar[Jumlah],PengeluaranMar[Kategori],RingkasanPengeluaran[Pengeluaran])","v":{"v":109000,"d":"109,000.00"}},{"$f":"SUMIFS(PengeluaranApr[Jumlah],PengeluaranApr[Kategori],RingkasanPengeluaran[Pengeluaran])","v":{"v":98000,"d":"98,000.00"}},{"$f":"SUMIFS(PengeluaranMei[Jumlah],PengeluaranMei[Kategori],RingkasanPengeluaran[Pengeluaran])","v":{"v":33000,"d":"33,000.00"}},{"$f":"SUMIFS(PengeluaranJun[Jumlah],PengeluaranJun[Kategori],RingkasanPengeluaran[Pengeluaran])","v":{"v":441000,"d":"441,000.00"}},{"$f":"SUMIFS(PengeluaranJul[Jumlah],PengeluaranJul[Kategori],RingkasanPengeluaran[Pengeluaran])","v":{"v":0,"d":"0.00"}},{"$f":"SUMIFS(PengeluaranAgs[Jumlah],PengeluaranAgs[Kategori],RingkasanPengeluaran[Pengeluaran])","v":{"v":0,"d":"0.00"}},{"$f":"SUMIFS(PengeluaranSep[Jumlah],PengeluaranSep[Kategori],RingkasanPengeluaran[Pengeluaran])","v":{"v":0,"d":"0.00"}},{"$f":"SUMIFS(PengeluaranOkt[Jumlah],PengeluaranOkt[Kategori],RingkasanPengeluaran[Pengeluaran])","v":{"v":0,"d":"0.00"}},{"$f":"SUMIFS(PengeluaranNov[Jumlah],PengeluaranNov[Kategori],RingkasanPengeluaran[Pengeluaran])","v":{"v":0,"d":"0.00"}},{"$f":"SUMIFS(PengeluaranDes[Jumlah],PengeluaranDes[Kategori],RingkasanPengeluaran[Pengeluaran])","v":{"v":9900,"d":"9,900.00"}},{"$f":"SUM(RingkasanPengeluaran[[#This Row],[Jan]:[Des]])","v":{"v":798900,"d":"798,900.00"}}]
["Total",{"$f":"SUBTOTAL(109,RingkasanPengeluaran[Jan])","v":{"v":861000,"d":"861,000.00"}},{"$f":"SUBTOTAL(109,RingkasanPengeluaran[Feb])","v":{"v":861000,"d":"861,000.00"}},{"$f":"SUBTOTAL(109,RingkasanPengeluaran[Mar])","v":{"v":574000,"d":"574,000.00"}},{"$f":"SUBTOTAL(109,RingkasanPengeluaran[Apr])","v":{"v":817000,"d":"817,000.00"}},{"$f":"SUBTOTAL(109,RingkasanPengeluaran[Mei])","v":{"v":977000,"d":"977,000.00"}},{"$f":"SUBTOTAL(109,RingkasanPengeluaran[Jun])","v":{"v":1049000,"d":"1,049,000.00"}},{"$f":"SUBTOTAL(109,RingkasanPengeluaran[Jul])","v":{"v":0,"d":"0.00"}},{"$f":"SUBTOTAL(109,RingkasanPengeluaran[Ags])","v":{"v":0,"d":"0.00"}},{"$f":"SUBTOTAL(109,RingkasanPengeluaran[Sep])","v":{"v":0,"d":"0.00"}},{"$f":"SUBTOTAL(109,RingkasanPengeluaran[Okt])","v":{"v":0,"d":"0.00"}},{"$f":"SUBTOTAL(109,RingkasanPengeluaran[Nov])","v":{"v":0,"d":"0.00"}},{"$f":"SUBTOTAL(109,RingkasanPengeluaran[Des])","v":{"v":681800,"d":"681,800.00"}},{"$f":"SUBTOTAL(109,RingkasanPengeluaran[Total])","v":{"v":5820800,"d":"5,820,800.00"}}]

{"sheet":"jan","index":2,"n_rows":9,"n_cols":5,"rows_kept":9,"merged":[[0,0,0,2]]}
["PENGELUARAN JANUARI",null,null,"Ringkasan","Tips"]
["Tanggal","PO#","Jumlah","Kategori","Deskripsi"]
[{"$f":"DATE(YEAR(TODAY()),1,4)","v":"2017-01-04"},"A-12345",{"v":33000,"d":"33,000.00"},"Pengeluaran 1","Persediaan"]
[{"$f":"DATE(YEAR(TODAY()),1,5)","v":"2017-01-05"},"A-12346",{"v":238000,"d":"238,000.00"},"Pengeluaran 2"]
[null,null,{"v":342000,"d":"342,000.00"},"Pengeluaran 4"]
[null,null,{"v":110000,"d":"110,000.00"},"Pengeluaran 3"]
[null,null,{"v":84000,"d":"84,000.00"},"Pengeluaran 4"]
[null,null,{"v":54000,"d":"54,000.00"},"Pengeluaran 5"]
["Total",null,{"$f":"SUBTOTAL(109,PengeluaranJan[Jumlah])","v":{"v":861000,"d":"861,000.00"}}]

{"sheet":"feb","index":3,"n_rows":9,"n_cols":5,"rows_kept":9,"merged":[[0,0,0,2]]}
["PENGELUARAN FEBRUARI",null,null,"Ringkasan","Tips"]
["Tanggal","PO#","Jumlah","Kategori","Deskripsi"]
[{"$f":"DATE(YEAR(TODAY()),2,3)","v":"2017-02-03"},"A-12345",{"v":33000,"d":"33,000.00"},"Pengeluaran 1","Persediaan"]
[{"$f":"DATE(YEAR(TODAY()),2,4)","v":"2017-02-04"},"A-12346",{"v":238000,"d":"238,000.00"},"Pengeluaran 2"]
[null,null,{"v":342000,"d":"342,000.00"},"Pengeluaran 1"]
[null,null,{"v":110000,"d":"110,000.00"},"Pengeluaran 3"]
[null,null,{"v":84000,"d":"84,000.00"},"Pengeluaran 4"]
[null,null,{"v":54000,"d":"54,000.00"},"Pengeluaran 5"]
["Total",null,{"$f":"SUBTOTAL(109,PengeluaranFeb[Jumlah])","v":{"v":861000,"d":"861,000.00"}}]

{"sheet":"mar","index":4,"n_rows":9,"n_cols":5,"rows_kept":9,"merged":[[0,0,0,2]]}
["PENGELUARAN MARET",null,null,"Ringkasan","Tips"]
["Tanggal","PO#","Jumlah","Kategori","Deskripsi"]
[{"$f":"DATE(YEAR(TODAY()),3,5)","v":"2017-03-05"},"A-12345",{"v":33000,"d":"33,000.00"},"Pengeluaran 1","Persediaan"]
[{"$f":"DATE(YEAR(TODAY()),3,6)","v":"2017-03-06"},"A-12346",{"v":238000,"d":"238,000.00"},"Pengeluaran 2"]
[null,null,{"v":55000,"d":"55,000.00"},"Pengeluaran 5"]
[null,null,{"v":110000,"d":"110,000.00"},"Pengeluaran 3"]
[null,null,{"v":84000,"d":"84,000.00"},"Pengeluaran 4"]
[null,null,{"v":54000,"d":"54,000.00"},"Pengeluaran 5"]
["Total",null,{"$f":"SUBTOTAL(109,PengeluaranMar[Jumlah])","v":{"v":574000,"d":"574,000.00"}}]

{"sheet":"apr","index":5,"n_rows":9,"n_cols":5,"rows_kept":9,"merged":[[0,0,0,2]]}
["PENGELUARAN APRIL",null,null,"Ringkasan","Tips"]
["Tanggal","PO#","Jumlah","Kategori","Deskripsi"]
[{"$f":"DATE(YEAR(TODAY()),4,4)","v":"2017-04-04"},"A-12345",{"v":45000,"d":"45,000.00"},"Pengeluaran 1","Persediaan"]
[{"$f":"DATE(YEAR(TODAY()),4,8)","v":"2017-04-08"},"A-12346",{"v":123000,"d":"123,000.00"},"Pengeluaran 2"]
[null,null,{"v":342000,"d":"342,000.00"},"Pengeluaran 4"]
[null,null,{"v":125000,"d":"125,000.00"},"Pengeluaran 3"]
[null,null,{"v":84000,"d":"84,000.00"},"Pengeluaran 4"]
[null,null,{"v":98000,"d":"98,000.00"},"Pengeluaran 5"]
["Total",null,{"$f":"SUBTOTAL(109,PengeluaranApr[Jumlah])","v":{"v":817000,"d":"817,000.00"}}]

{"sheet":"mei","index":6,"n_rows":9,"n_cols":5,"rows_kept":9,"merged":[[0,0,0,2]]}
["PENGELUARAN MEI",null,null,"Ringkasan","Tips"]
["Tanggal","PO#","Jumlah","Kategori","Deskripsi"]
[{"$f":"DATE(YEAR(TODAY()),5,3)","v":"2017-05-03"},"A-12345",{"v":33000,"d":"33,000.00"},"Pengeluaran 1","Persediaan"]
[{"$f":"DATE(YEAR(TODAY()),5,8)","v":"2017-05-08"},"A-12346",{"v":111000,"d":"111,000.00"},"Pengeluaran 2"]
[null,null,{"v":342000,"d":"342,000.00"},"Pengeluaran 1"]
[null,null,{"v":333000,"d":"333,000.00"},"Pengeluaran 3"]
[null,null,{"v":125000,"d":"125,000.00"},"Pengeluaran 4"]
[null,null,{"v":33000,"d":"33,000.00"},"Pengeluaran 5"]
["Total",null,{"$f":"SUBTOTAL(109,PengeluaranMei[Jumlah])","v":{"v":977000,"d":"977,000.00"}}]

{"sheet":"jun","index":7,"n_rows":9,"n_cols":5,"rows_kept":9,"merged":[[0,0,0,2]]}
["PENGELUARAN JUNI",null,null,"Ringkasan","Tips"]
["Tanggal","PO#","Jumlah","Kategori","Deskripsi"]
[{"$f":"DATE(YEAR(TODAY()),6,7)","v":"2017-06-07"},"A-12345",{"v":201000,"d":"201,000.00"},"Pengeluaran 1","Persediaan"]
[{"$f":"DATE(YEAR(TODAY()),6,8)","v":"2017-06-08"},"A-12346",{"v":98000,"d":"98,000.00"},"Pengeluaran 2"]
[null,null,{"v":342000,"d":"342,000.00"},"Pengeluaran 5"]
[null,null,{"v":122000,"d":"122,000.00"},"Pengeluaran 3"]
[null,null,{"v":187000,"d":"187,000.00"},"Pengeluaran 4"]
[null,null,{"v":99000,"d":"99,000.00"},"Pengeluaran 5"]
["Total",null,{"$f":"SUBTOTAL(109,PengeluaranJun[Jumlah])","v":{"v":1049000,"d":"1,049,000.00"}}]

{"sheet":"jul","index":8,"n_rows":9,"n_cols":5,"rows_kept":9,"merged":[[0,0,0,2]]}
["PENGELUARAN JULI",null,null,"Ringkasan","Tips"]
["Tanggal","PO#","Jumlah","Kategori","Deskripsi"]
[{"$f":"DATE(YEAR(TODAY()),7,9)","v":"2017-07-09"},"A-12345",null,"Pengeluaran 1","Persediaan"]
[{"$f":"DATE(YEAR(TODAY()),7,14)","v":"2017-07-14"},"A-12346",null,"Pengeluaran 2"]
[{"$nulls":3},"Pengeluaran 2"]
[{"$nulls":3},"Pengeluaran 3"]
[{"$nulls":3},"Pengeluaran 4"]
[{"$nulls":3},"Pengeluaran 5"]
["Total",null,{"$f":"SUBTOTAL(109,PengeluaranJul[Jumlah])","v":{"v":0,"d":"0.00"}}]

{"sheet":"ags","index":9,"n_rows":9,"n_cols":5,"rows_kept":9,"merged":[[0,0,0,2]]}
["PENGELUARAN AGUSTUS",null,null,"Ringkasan","Tips"]
["Tanggal","PO#","Jumlah","Kategori","Deskripsi"]
[{"$f":"DATE(YEAR(TODAY()),8,8)","v":"2017-08-08"},"A-12345",null,"Pengeluaran 1","Persediaan"]
[{"$f":"DATE(YEAR(TODAY()),8,9)","v":"2017-08-09"},"A-12346",null,"Pengeluaran 2"]
[{"$nulls":3},"Pengeluaran 2"]
[{"$nulls":3},"Pengeluaran 3"]
[{"$nulls":3},"Pengeluaran 4"]
[{"$nulls":3},"Pengeluaran 5"]
["Total",null,{"$f":"SUBTOTAL(109,PengeluaranAgs[Jumlah])","v":{"v":0,"d":"0.00"}}]

{"sheet":"sep","index":10,"n_rows":9,"n_cols":5,"rows_kept":9,"merged":[[0,0,0,2]]}
["PENGELUARAN SEPTEMBER",null,null,"Ringkasan","Tips"]
["Tanggal","PO#","Jumlah","Kategori","Deskripsi"]
[{"$f":"DATE(YEAR(TODAY()),9,9)","v":"2017-09-09"},"A-12345",null,"Pengeluaran 1","Persediaan"]
[{"$f":"DATE(YEAR(TODAY()),9,15)","v":"2017-09-15"},"A-12346",null,"Pengeluaran 2"]
[{"$nulls":3},"Pengeluaran 2"]
[{"$nulls":3},"Pengeluaran 3"]
[{"$nulls":3},"Pengeluaran 4"]
[{"$nulls":3},"Pengeluaran 5"]
["Total",null,{"$f":"SUBTOTAL(109,PengeluaranSep[Jumlah])","v":{"v":0,"d":"0.00"}}]

{"sheet":"okt","index":11,"n_rows":9,"n_cols":5,"rows_kept":9,"merged":[[0,0,0,2]]}
["PENGELUARAN OKTOBER",null,null,"Ringkasan","Tips"]
["Tanggal","PO#","Jumlah","Kategori","Deskripsi"]
[{"$f":"DATE(YEAR(TODAY()),10,10)","v":"2017-10-10"},"A-12345",null,"Pengeluaran 1","Persediaan"]
[{"$f":"DATE(YEAR(TODAY()),10,21)","v":"2017-10-21"},"A-12346",null,"Pengeluaran 2"]
[{"$nulls":3},"Pengeluaran 2"]
[{"$nulls":3},"Pengeluaran 3"]
[{"$nulls":3},"Pengeluaran 4"]
[{"$nulls":3},"Pengeluaran 5"]
["Total",null,{"$f":"SUBTOTAL(109,PengeluaranOkt[Jumlah])","v":{"v":0,"d":"0.00"}}]

{"sheet":"nov","index":12,"n_rows":9,"n_cols":5,"rows_kept":9,"merged":[[0,0,0,2]]}
["PENGELUARAN NOVEMBER",null,null,"Ringkasan","Tips"]
["Tanggal","PO#","Jumlah","Kategori","Deskripsi"]
[{"$f":"DATE(YEAR(TODAY()),11,14)","v":"2017-11-14"},"A-12345",null,"Pengeluaran 1","Persediaan"]
[{"$f":"DATE(YEAR(TODAY()),11,21)","v":"2017-11-21"},"A-12346",null,"Pengeluaran 2"]
[{"$nulls":3},"Pengeluaran 2"]
[{"$nulls":3},"Pengeluaran 3"]
[{"$nulls":3},"Pengeluaran 4"]
[{"$nulls":3},"Pengeluaran 5"]
["Total",null,{"$f":"SUBTOTAL(109,PengeluaranNov[Jumlah])","v":{"v":0,"d":"0.00"}}]

{"sheet":"des","index":13,"n_rows":9,"n_cols":5,"rows_kept":9,"merged":[[0,0,0,2]]}
["PENGELUARAN DESEMBER",null,null,"Ringkasan","Tips"]
["Tanggal","PO#","Jumlah","Kategori","Deskripsi"]
[{"$f":"DATE(YEAR(TODAY()),12,2)","v":"2017-12-02"},"A-12345",{"v":201000,"d":"201,000.00"},"Pengeluaran 1","Persediaan"]
[{"$f":"DATE(YEAR(TODAY()),12,24)","v":"2017-12-24"},"A-12346",{"v":98000,"d":"98,000.00"},"Pengeluaran 2"]
[null,null,{"v":342000,"d":"342,000.00"},"Pengeluaran 2"]
[null,null,{"v":12200,"d":"12,200.00"},"Pengeluaran 3"]
[null,null,{"v":18700,"d":"18,700.00"},"Pengeluaran 4"]
[null,null,{"v":9900,"d":"9,900.00"},"Pengeluaran 5"]
["Total",null,{"$f":"SUBTOTAL(109,PengeluaranDes[Jumlah])","v":{"v":681800,"d":"681,800.00"}}]